bitfinex-derivatives/quotes_ETHF0:USTF0_20250904
["timestamp","ask_amount","ask_price","bid_price","bid_amount"]
[1756947863531,1.34820787,4469.0,4468.6,0.3017]
[1756947863730,0.7116,4468.7,4468.6,0.5099]
[1756947864433,0.7116,4468.7,4468.2,0.3017]
[1756947864632,0.1146,4469.0,4468.3,0.97339545]
[1756947864942,1.23581055,4468.9,4468.8,0.7072]
[1756947865644,0.7116,4468.9,4468.8,0.7072]
[1756947865844,1.23574793,4468.9,4468.8,0.7072]
[1756947882568,1.23574793,4468.9,4468.8,0.2082]
[1756947885068,1.23574793,4468.9,4468.8,0.6996]
[1756947889371,1.23574793,4468.9,4468.8,1.67299545]
[1756947891072,0.52414793,4468.9,4468.8,1.89676544]
[1756947891776,0.2836,4469.8,4468.9,0.2966]
[1756947891976,0.4901,4469.8,4469.7,1.65839545]
[1756947892371,0.41,4469.8,4469.1,0.2966]
[1756947892667,0.6936,4469.2,4469.1,0.685]
[1756947892971,0.1207,4470.0,4469.0,1.09219545]
[1756947892972,0.4901,4469.9,4469.8,0.3884]
[1756947893279,0.6936,4469.9,4469.8,0.685]
[1756947900472,0.2836,4470.4,4469.9,0.2966]
[1756947900776,0.1224,4471.0,4470.9,0.1936]
[1756947900777,0.5324,4471.0,4470.9,0.1936]
[1756947900977,0.816,4471.0,4470.9,0.4902]
[1756947901376,0.816,4471.0,4470.9,0.1936]
[1756947901778,0.816,4471.0,4470.1,0.2966]
[1756947901980,0.6936,4470.2,4469.8,0.2966]
[1756947902173,0.41,4470.2,4469.6,0.81096099]
[1756947902480,0.6936,4470.1,4470.0,0.1936]
[1756947903486,0.4871,4469.7,4469.6,0.1936]
[1756947903679,0.6936,4469.7,4469.6,1.30116099]
[1756947904486,0.6936,4469.7,4469.6,1.49596099]
[1756947904679,0.1224,4470.5,4469.6,1.49596099]
[1756947904885,1.21634339,4470.4,4470.3,1.49596099]
[1756947905085,1.01284339,4470.4,4470.3,1.49596099]
[1756947905281,1.21634339,4470.4,4470.0,0.81096099]
[1756947905475,0.6936,4469.9,4469.8,0.4902]
[1756947905681,0.6936,4469.9,4469.8,0.685]
[1756947907485,0.1224,4471.0,4469.9,0.2966]
[1756947907688,1.21619693,4470.9,4470.8,0.685]
[1756947908288,0.6936,4470.9,4470.8,0.685]
[1756947908787,1.21599447,4470.9,4470.5,1.10756099]
[1756947908985,0.2836,4470.8,4470.5,1.10756099]
[1756947909290,0.2836,4470.8,4470.1,0.22369]
[1756947909291,0.6936,4470.2,4470.1,1.30116099]
[1756947909484,0.6936,4470.2,4469.6,1.10756099]
[1756947909685,0.81096099,4470.4,4469.1,0.22372999]
[1756947909892,0.6936,4469.3,4469.2,1.49596099]
[1756947910376,0.6936,4469.3,4469.2,0.685]
[1756947910576,0.6936,4469.3,4469.2,1.49596099]
[1756947911985,0.5074,4469.0,4468.6,0.81096099]
[1756947912183,0.3838,4468.6,4468.5,0.6841]
[1756947912385,0.6752,4468.6,4468.5,1.49506099]
[1756947913085,0.6752,4468.6,4468.5,1.21066099]
[1756947913388,0.6752,4468.3,4468.2,1.01896099]
[1756947913690,0.6752,4468.3,4468.2,1.30336099]
[1756947913991,0.6752,4468.3,4468.2,1.49506099]
[1756947915186,0.6752,4468.3,4468.2,0.208]
[1756947916491,0.1953,4467.6,4467.5,0.8029]
[1756947916683,0.1236,4468.5,4467.5,1.55546099]
[1756947916684,0.2914,4468.4,4467.5,1.55546099]
[1756947916878,0.6752,4468.1,4468.0,1.01896099]
[1756947918188,0.1236,4468.5,4468.0,1.32936099]
[1756947918384,0.4867,4468.4,4468.3,0.6841]
[1756947918586,0.6752,4468.4,4467.9,0.2844]
[1756947919692,0.6752,4468.2,4468.1,0.81096099]
[1756947920594,0.6752,4468.2,4468.1,1.01896099]
[1756947922482,0.6752,4468.2,4467.5,0.3448]
[1756947922691,0.1953,4467.1,4467.0,0.3997]
[1756947922989,0.6752,4467.1,4467.0,1.21066099]
[1756947923389,0.6752,4467.1,4467.0,1.49506099]
[1756947923894,0.4867,4467.9,4467.8,0.3997]
[1756947924190,0.7988,4468.5,4468.4,0.208]
[1756947924692,0.7988,4468.5,4468.2,0.81096099]
[1756947924994,0.6752,4468.3,4468.2,1.01896099]
[1756947927392,0.1236,4468.0,4467.9,0.81096099]
[1756947927592,0.5074,4468.0,4467.9,0.81096099]
[1756947927791,0.7988,4468.0,4467.9,1.01896099]
[1756947928097,0.7988,4468.0,4467.9,0.81096099]
[1756947928299,0.7988,4468.0,4467.6,0.81096099]
[1756947928590,0.2914,4467.3,4467.0,0.2844]
[1756947928792,0.6752,4467.1,4467.0,1.30336099]
[1756947929789,0.6752,4467.1,4467.0,1.01896099]
[1756947930993,0.6752,4467.1,4467.0,0.208]
[1756947931293,0.4867,4466.8,4466.7,0.6841]
[1756947931488,0.4867,4466.8,4466.7,1.49506099]
[1756947935500,0.6752,4466.8,4466.7,1.49506099]
[1756947935997,0.6752,4466.8,4466.7,0.6841]
[1756947936800,0.6752,4466.8,4466.7,1.49506099]
[1756947939690,0.6752,4466.8,4466.7,0.6841]
[1756947939896,0.6752,4466.8,4466.2,0.2844]
[1756947940193,0.6752,4466.8,4466.0,0.1187]
[1756947940194,0.6752,4466.8,4466.7,0.208]
[1756947942007,0.6752,4466.8,4466.7,0.6841]
[1756947942201,1.48616099,4466.8,4465.6,0.2919]
[1756947942401,0.4014,4466.3,4466.2,0.6979]
[1756947942602,0.7079,4466.3,4466.2,0.6979]
[1756947946403,0.4014,4465.6,4465.5,0.406]
[1756947946707,0.7079,4465.6,4465.5,0.1988]
[1756947947107,0.7079,4465.6,4465.5,0.4907]
[1756947947303,0.4014,4465.3,4465.2,1.30166099]
[1756947947607,0.7079,4465.3,4465.2,1.30166099]
[1756947947805,0.7079,4465.3,4465.2,0.6979]
[1756947948208,1.32893511,4467.0,4465.3,0.2919]
[1756947948403,0.8282,4466.0,4465.9,1.30166099]
[1756947948713,0.8282,4466.0,4465.0,0.1205]
[1756947948714,0.8282,4466.0,4465.5,0.81096099]
[1756947949004,0.5217,4466.0,4465.9,0.1988]
[1756947949312,0.5217,4466.0,4465.0,0.1205]
[1756947949511,0.4014,4465.6,4465.5,1.21696099]
[1756947949712,0.7079,4465.6,4465.5,1.21696099]
[1756947950214,0.7079,4465.6,4465.5,1.50886099]
[1756947950910,0.7079,4465.6,4465.5,0.1988]
[1756947951412,0.7079,4465.6,4465.5,0.4907]
[1756947953308,0.7079,4465.6,4465.5,0.1988]
[1756947953511,0.4268,4465.5,4465.1,0.2919]
[1756947953809,0.4268,4465.5,4464.5,0.1187]
[1756947953810,0.4014,4464.7,4464.6,0.6979]
[1756947954014,0.7079,4464.7,4464.6,0.6979]
[1756947956521,0.7079,4464.7,4464.6,1.50886099]
[1756947957016,0.7079,4464.7,4463.1,1.60377838]
[1756947957017,4.62538,4464.7,4463.2,0.2919]
[1756947957317,0.81096099,4464.5,4463.8,0.81096099]
[1756947957521,0.5210804,4464.4,4464.1,0.2919]
[1756947957707,0.5210804,4464.3,4464.2,0.1988]
[1756947957909,0.81096099,4464.5,4464.2,0.1988]
[1756947957910,0.5210804,4464.4,4464.2,0.4907]
[1756947958110,0.5210804,4464.4,4464.3,0.2919]
[1756947959208,1.33204139,4464.4,4464.3,0.2919]
[1756947959408,0.5210804,4464.4,4464.3,0.4907]
[1756947959613,0.5210804,4464.5,4464.3,0.4907]
[1756947959812,0.5210804,4464.5,4464.4,0.2919]
[1756947960917,0.5210804,4464.5,4464.4,0.6979]
[1756947961417,7.68094454,4464.5,4463.6,0.4907]
[1756947961619,0.7510804,4464.4,4464.0,0.1205]
[1756947961815,0.5210804,4464.3,4464.1,0.2919]
[1756947962015,0.5210804,4464.2,4464.1,0.4907]
[1756947962416,0.52548485,4464.3,4464.2,0.2919]
[1756947962617,0.52553071,4464.3,4464.0,0.3193]
[1756947962819,0.52553071,4464.2,4464.1,0.2919]
[1756947963117,0.52553071,4464.3,4464.1,0.406]
[1756947963324,0.1119,4464.6,4464.5,0.5265]
[1756947963618,0.52554256,4464.9,4464.6,0.2919]
[1756947963818,0.52553651,4464.8,4464.7,0.2919]
[1756947964124,0.52553651,4464.8,4464.6,0.2919]
[1756947964420,0.75553651,4464.7,4464.6,0.4907]
[1756947965322,4.75553651,4464.7,4464.1,0.2919]
[1756947965517,0.694,4463.6,4463.5,0.1988]
[1756947965717,1.21953651,4463.6,4462.5,0.1205]
[1756947965919,0.4014,4463.1,4463.0,0.5265]
[1756947967116,0.7079,4463.1,4463.0,0.5265]
[1756947967521,0.7079,4463.1,4462.0,0.1205]
[1756947967522,0.7079,4462.9,4462.0,0.4124]
[1756947967715,0.2068,4462.1,4462.0,0.5265]
[1756947967914,0.2068,4462.1,4462.0,0.8184]
[1756947968116,0.4014,4462.1,4462.0,0.8184]
[1756947968731,0.7079,4462.1,4462.0,0.6979]
[1756947968927,0.4014,4461.7,4461.6,0.4907]
[1756947969222,0.7079,4461.7,4461.6,0.4907]
[1756947969725,0.3065,4462.1,4461.6,0.406]
[1756947969926,0.2068,4462.1,4462.0,0.8184]
[1756947970521,0.4014,4462.1,4462.0,0.8184]
[1756947970719,0.7079,4462.1,4461.6,0.2919]
[1756947970913,0.2068,4461.7,4461.6,0.406]
[1756947971114,0.3065,4462.9,4461.7,0.2919]
[1756947971323,0.92544693,4462.8,4462.7,0.6979]
[1756947971520,0.7079,4462.8,4462.7,0.6979]
[1756947971724,0.7079,4462.8,4462.5,0.1205]
[1756947971925,0.7079,4462.8,4462.5,0.2919]
[1756947971926,0.2871,4462.7,4462.5,0.2919]
[1756947972224,0.6643,4462.6,4462.5,0.4842]
[1756947972626,0.3845,4462.5,4461.6,0.2884]
[1756947972921,0.6643,4461.7,4461.6,0.4807]
[1756947973127,0.2871,4462.5,4461.7,0.2884]
[1756947973324,0.52361264,4462.4,4461.7,0.2884]
[1756947973520,0.6155,4462.5,4461.7,0.2884]
[1756947973714,0.3772,4461.8,4461.7,0.6738]
[1756947976930,0.231,4462.4,4461.7,0.6738]
[1756947977222,1.1877513,4462.3,4462.2,0.4807]
[1756947978822,1.1877513,4462.3,4462.2,0.6738]
[1756947979026,0.5181,4463.0,4462.3,0.2884]
[1756947979223,1.18779309,4462.9,4462.8,0.6738]
[1756947980021,1.18779309,4462.9,4462.5,0.1181]
[1756947980232,0.6643,4462.2,4461.6,0.2884]
[1756947981226,0.3772,4461.7,4461.6,0.6738]
[1756947981624,0.6643,4461.7,4461.6,0.6738]
[1756947982626,0.6643,4461.7,4461.0,0.1205]
[1756947982627,5.18867327,4461.7,4460.5,0.1181]
[1756947982828,0.3772,4460.7,4460.6,0.6738]
[1756947983829,0.6643,4460.7,4460.6,0.6738]
[1756947984131,0.2871,4461.2,4460.6,0.3854]
[1756947984328,0.231,4461.4,4460.5,0.1181]
[1756947984329,0.1882,4460.8,4460.7,0.2884]
[1756947984633,0.1882,4460.8,4460.7,0.6738]
[1756947985329,0.3772,4460.8,4460.7,0.6738]
[1756947985538,0.6643,4460.8,4460.7,0.6738]
[1756947985831,1.18896898,4460.8,4460.7,0.6738]
[1756947986734,1.18896898,4460.8,4460.7,0.4807]
[1756947987230,0.90186898,4460.8,4460.7,0.6738]
[1756947987534,0.52466898,4460.8,4460.7,0.6738]
[1756947987729,0.3772,4461.6,4461.5,0.7919]
[1756947987934,1.18944715,4461.6,4461.5,0.7919]
[1756947988831,0.90234715,4461.6,4461.5,0.7919]
[1756947989631,0.52514715,4461.6,4461.5,0.7919]
[1756947994539,0.21124715,4461.6,4461.5,0.7919]
[1756947994740,0.112,4461.8,4461.7,0.6738]
[1756947995042,0.1135,4462.5,4461.7,0.3854]
[1756947995234,0.2871,4462.4,4461.8,0.2884]
[1756947995543,0.6643,4461.9,4461.8,0.6738]
[1756947997236,0.4753,4461.9,4461.8,0.6738]
[1756947997434,0.1882,4461.9,4461.8,0.6738]
[1756947997634,0.112,4462.1,4461.8,0.3854]
[1756947997836,0.112,4462.1,4462.0,0.7919]
[1756947998040,1.39353511,4462.6,4462.5,0.3854]
[1756947998233,1.68063511,4462.6,4462.5,0.6738]
[1756947998430,0.4753,4462.6,4462.5,0.6738]
[1756947998634,0.6643,4462.6,4462.5,0.6738]
[1756948000536,0.6643,4462.1,4462.0,0.3854]
[1756948000738,0.6643,4462.1,4461.5,0.1181]
[1756948000935,0.4006,4462.0,4461.5,0.5035]
[1756948001143,0.4753,4461.9,4461.8,0.3854]
[1756948001343,0.4753,4461.9,4461.8,0.6738]
[1756948001546,0.6643,4461.9,4461.8,0.6738]
[1756948003644,0.29,4462.4,4461.8,0.3854]
[1756948003845,0.4944,4462.4,4462.3,0.4058]
[1756948004051,0.6858,4462.4,4462.3,0.7077]
[1756948006453,0.6858,4462.4,4462.3,0.4058]
[1756948006654,1.21194539,4462.4,4462.3,0.2081]
[1756948007349,0.92194539,4462.4,4461.5,0.1181]
[1756948007553,0.52612975,4462.3,4461.7,0.3019]
[1756948007752,0.6858,4461.8,4461.7,0.51]
[1756948007951,0.6858,4461.8,4461.7,0.2081]
[1756948007952,1.21190767,4461.8,4461.7,0.2081]
[1756948008351,0.6858,4461.8,4461.7,0.2081]
[1756948009255,1.21189334,4461.8,4461.7,0.2081]
[1756948009655,0.1223,4461.5,4461.4,0.3019]
[1756948009852,0.8081,4461.5,4461.4,0.2081]
[1756948010555,0.8081,4461.5,4460.3,0.23]
[1756948010556,0.8081,4461.5,4460.6,0.3019]
[1756948010953,0.8081,4461.5,4461.4,0.7077]
[1756948011154,1.33417989,4461.5,4461.4,0.7077]
[1756948012457,0.8081,4461.5,4461.4,0.7077]
[1756948012756,1.33145693,4461.5,4461.4,0.7077]
[1756948012952,1.33145693,4461.5,4459.9,0.2081]
[1756948012953,0.8081,4460.0,4459.9,0.2081]
[1756948013458,0.6858,4460.4,4460.3,0.7077]
[1756948013658,1.20877996,4460.4,4460.3,0.4058]
[1756948013866,1.20877996,4460.4,4459.1,0.3019]
[1756948014065,0.1223,4460.5,4459.2,0.3019]
[1756948014066,0.29,4460.2,4459.2,0.3019]
[1756948014256,0.6858,4459.9,4459.8,0.2081]
[1756948014757,0.29,4459.8,4459.0,0.3019]
[1756948014961,0.1223,4460.0,4459.0,0.7077]
[1756948014962,0.4944,4459.1,4459.0,0.7077]
[1756948015157,0.29,4460.4,4459.1,0.22424]
[1756948015465,0.4944,4459.5,4459.4,0.7077]
[1756948015859,0.4944,4460.0,4459.9,0.4058]
[1756948016061,1.02242251,4460.0,4459.9,0.7077]
[1756948016367,0.29,4460.3,4459.9,0.7077]
[1756948016566,0.63996705,4460.2,4460.1,0.7077]
[1756948016859,1.32576705,4460.2,4460.1,0.4058]
[1756948017060,0.3958,4459.6,4459.5,0.51]
[1756948017266,0.6858,4459.6,4459.5,0.2081]
[1756948017759,0.6858,4459.6,4459.5,0.4058]
[1756948018661,0.6858,4459.6,4459.5,0.7077]
[1756948019063,0.6858,4458.9,4458.8,0.7077]
[1756948020367,0.6858,4458.9,4458.8,0.2081]
[1756948020562,0.6858,4458.9,4458.4,0.3019]
[1756948020870,0.29,4458.8,4458.0,0.4225]
[1756948021067,0.29,4458.9,4458.0,0.4225]
[1756948021367,0.4944,4458.1,4458.0,0.7077]
[1756948021971,0.6858,4458.1,4458.0,0.7077]
[1756948022164,0.6858,4458.1,4456.2,0.40376]
[1756948022165,0.1223,4458.0,4457.1,0.3019]
[1756948022375,0.8081,4458.0,4457.9,0.4058]
[1756948022570,0.8081,4458.0,4457.7,0.3019]
[1756948022762,0.8081,4458.0,4457.1,0.3019]
[1756948024766,0.8081,4458.0,4457.9,0.2081]
[1756948025166,0.6858,4458.0,4457.9,0.7077]
[1756948025468,0.4944,4458.4,4458.3,0.4058]
[1756948025663,0.4944,4458.4,4458.3,0.7077]
[1756948025664,0.6858,4458.4,4458.3,0.7077]
[1756948026071,0.6858,4458.4,4458.3,0.4058]
[1756948026271,0.6858,4458.4,4458.3,0.2081]
[1756948026469,0.29,4458.3,4457.5,0.3019]
[1756948026669,0.29,4458.3,4457.5,0.4225]
[1756948026870,0.6858,4458.3,4458.2,0.2081]
[1756948028683,0.6858,4458.3,4458.0,0.3019]
[1756948028868,0.6858,4458.3,4457.6,0.3019]
[1756948029771,0.6858,4458.3,4458.2,0.2081]
[1756948029974,0.4944,4458.3,4458.2,0.7077]
[1756948030175,0.2044,4458.3,4458.2,0.7077]
[1756948030367,0.29,4458.9,4458.3,0.3019]
[1756948030567,0.29,4459.4,4458.9,0.3019]
[1756948030874,0.29,4459.4,4459.3,0.7077]
[1756948030875,0.4944,4459.4,4459.3,0.7077]
[1756948031266,0.29,4460.1,4459.4,0.3019]
[1756948031470,0.233,4460.4,4459.0,0.1206]
[1756948031769,0.4944,4459.9,4459.8,0.2081]
[1756948031967,0.233,4460.4,4459.8,0.7064]
[1756948032167,0.2058,4460.0,4459.9,0.3002]
[1756948032367,0.2058,4460.0,4459.5,0.1195]
[1756948032368,0.5145,4460.0,4459.6,0.3002]
[1756948032573,0.7027,4459.9,4459.8,0.2039]
[1756948033171,0.7027,4459.9,4459.8,0.7022]
[1756948034270,2.8139572,4463.3,4460.1,0.7022]
[1756948034271,0.3035,4460.7,4460.1,0.7022]
[1756948034668,0.3035,4460.7,4460.2,0.3002]
[1756948034872,0.3035,4460.9,4460.1,0.3002]
[1756948035374,0.7027,4460.9,4460.8,0.2039]
[1756948035572,0.7027,4460.9,4460.8,0.7022]
[1756948036068,0.7027,4460.9,4460.8,0.402]
[1756948037078,0.7027,4460.9,4460.5,0.3002]
[1756948037370,0.2058,4460.6,4460.5,0.5041]
[1756948037573,0.5093,4460.6,4460.5,0.7022]
[1756948038175,0.2058,4460.6,4460.5,0.7022]
[1756948038570,0.5093,4460.6,4460.5,0.7022]
[1756948040171,0.2058,4460.6,4460.5,0.7022]
[1756948041076,0.112,4461.1,4460.9,0.3002]
[1756948041268,0.112,4461.1,4461.0,0.7022]
[1756948041269,0.6213,4461.1,4461.0,0.7022]
[1756948041477,0.5093,4461.1,4461.0,0.7022]
[1756948042172,0.7027,4461.1,4461.0,0.402]
[1756948042481,0.7027,4461.1,4461.0,0.2039]
[1756948042778,0.7027,4461.1,4461.0,0.7022]
[1756948043471,1.2349653,4461.1,4461.0,0.7022]
[1756948043774,0.1153,4461.0,4460.6,0.3002]
[1756948043981,0.5093,4460.7,4460.6,0.7022]
[1756948044673,0.2058,4460.8,4460.7,0.2039]
[1756948044979,0.2058,4460.8,4460.7,0.7022]
[1756948045678,0.112,4461.3,4460.7,0.402]
[1756948045877,0.112,4461.3,4461.1,0.7022]
[1756948046075,0.112,4461.3,4461.2,0.7022]
[1756948046276,0.1153,4462.0,4461.2,0.402]
[1756948046475,0.5093,4462.1,4462.0,0.7022]
[1756948046679,1.04115037,4462.1,4462.0,0.7022]
[1756948046978,0.2058,4461.7,4461.6,0.3002]
[1756948047177,0.2058,4461.7,4461.6,0.7022]
[1756948047479,0.5093,4461.7,4461.6,0.7022]
[1756948047676,0.2058,4461.7,4461.6,0.7022]
[1756948047878,0.112,4461.9,4461.7,0.3002]
[1756948048080,0.6213,4461.9,4461.8,0.7022]
[1756948048276,0.112,4461.9,4461.8,0.7022]
[1756948048672,0.3178,4461.9,4461.8,0.7022]
[1756948048876,0.8147,4461.9,4461.8,0.7022]
[1756948049079,0.7027,4461.9,4461.8,0.7022]
[1756948050778,0.5093,4461.9,4461.8,0.7022]
[1756948051879,0.112,4462.1,4461.9,0.3002]
[1756948052080,0.112,4462.1,4462.0,0.402]
[1756948052278,0.2058,4462.1,4462.0,0.7022]
[1756948052483,0.5093,4462.1,4462.0,0.7022]
[1756948052982,0.7027,4462.1,4462.0,0.7022]
[1756948053377,0.7027,4462.1,4461.1,0.232]
[1756948053378,0.1153,4462.0,4461.1,0.3002]
[1756948053677,0.7027,4461.2,4460.6,0.3002]
[1756948053872,0.7027,4461.2,4460.2,0.114]
[1756948053873,0.5093,4460.4,4460.3,0.5041]
[1756948054078,0.7027,4460.4,4460.3,0.5041]
[1756948054280,0.7027,4460.4,4460.3,0.2039]
[1756948055574,0.7027,4460.4,4459.9,0.3002]
[1756948055575,0.1153,4460.0,4459.9,0.3002]
[1756948055781,0.818,4460.0,4459.9,0.5041]
[1756948056077,0.818,4460.0,4459.9,0.7022]
[1756948057082,0.7027,4460.0,4459.9,0.7022]
[1756948057481,0.7027,4460.0,4459.9,0.2039]
[1756948057482,0.818,4460.0,4459.9,0.2039]
[1756948057688,0.818,4460.0,4459.5,0.3002]
[1756948058187,0.818,4460.0,4459.1,0.3002]
[1756948058389,0.818,4460.0,4459.9,0.2039]
[1756948060487,1.35079265,4460.0,4459.9,0.2039]
[1756948063583,1.35079265,4460.0,4459.5,0.3002]
[1756948063584,0.818,4460.0,4459.5,0.3002]
[1756948063886,0.389,4459.2,4459.1,0.4739]
[1756948064078,0.6798,4459.2,4459.1,0.4739]
[1756948064280,0.1153,4460.0,4459.1,0.6655]
[1756948064584,0.389,4459.9,4459.8,0.4739]
[1756948064790,0.6798,4459.9,4459.8,0.1907]
[1756948065991,0.6798,4459.9,4459.5,0.2832]
[1756948066894,0.389,4459.9,4459.5,0.2832]
[1756948067187,0.4902,4459.8,4459.7,0.1907]
[1756948067492,0.6798,4459.8,4459.7,0.1907]
[1756948068793,0.2908,4459.7,4458.6,0.2832]
[1756948068994,0.2908,4459.9,4458.7,0.2832]
[1756948069189,0.1195,4460.0,4458.7,0.22425]
[1756948069393,0.2908,4459.9,4458.8,0.2832]
[1756948069786,0.2908,4459.9,4458.8,0.50745]
[1756948069985,0.2908,4459.9,4458.9,0.2832]
[1756948070294,0.1896,4459.2,4459.1,0.6655]
[1756948070485,0.4804,4459.2,4459.1,0.6655]
[1756948070886,0.6798,4459.2,4459.1,0.6655]
[1756948071696,0.4804,4459.2,4459.1,0.6655]
[1756948072396,0.6798,4459.2,4459.1,0.6655]
[1756948072594,0.6798,4459.2,4459.1,0.3823]
[1756948073299,0.6798,4459.2,4459.1,0.6655]
[1756948075191,0.1195,4460.0,4459.2,0.2832]
[1756948075397,0.1195,4460.0,4459.0,0.1246]
[1756948075398,0.6798,4460.0,4459.9,0.6655]
[1756948075596,0.7993,4460.0,4459.3,0.2832]
[1756948076097,0.6798,4460.0,4459.9,0.6655]
[1756948076498,0.1195,4460.5,4460.0,0.4078]
[1756948076695,0.7993,4460.5,4460.4,0.1907]
[1756948079395,0.7993,4460.5,4460.4,0.6655]
[1756948079590,0.6798,4460.5,4460.4,0.6655]
[1756948079896,0.7993,4460.5,4460.4,0.6655]
[1756948080097,0.7993,4460.5,4460.4,0.3823]
[1756948080894,0.7993,4460.5,4459.6,0.2832]
[1756948081096,0.2908,4460.4,4459.7,0.2832]
[1756948081293,0.2908,4460.4,4459.7,0.50741]
[1756948081499,0.2908,4460.4,4460.3,0.1907]
[1756948081500,0.6798,4460.4,4460.3,0.1907]
[1756948082296,0.112,4460.7,4460.6,0.3823]
[1756948082494,0.1153,4461.0,4460.6,0.3823]
[1756948082695,0.4804,4460.9,4460.8,1.35968147]
[1756948082896,0.4804,4460.9,4460.8,1.64288147]
[1756948083703,1.0153115,4460.9,4460.8,1.64288147]
[1756948083904,0.9239115,4460.9,4460.3,0.2832]
[1756948084101,0.1153,4461.0,4460.2,1.64288147]
[1756948084102,0.1896,4460.3,4460.2,1.64288147]
[1756948084401,0.4804,4460.3,4460.2,1.86708147]
[1756948084599,0.6798,4460.3,4460.2,1.64288147]
[1756948084798,0.6798,4460.3,4459.7,0.2832]
[1756948085098,0.6798,4459.4,4459.3,0.6655]
[1756948085405,0.1195,4460.5,4459.5,0.1246]
[1756948085603,0.6798,4460.3,4460.2,0.1907]
[1756948085903,1.21460052,4460.3,4460.2,0.1907]
[1756948089704,1.19198199,4460.3,4460.2,0.1907]
[1756948090107,0.21460052,4460.3,4460.2,0.1907]
[1756948092298,0.21460052,4460.3,4460.2,1.16808147]
[1756948092510,0.21460052,4460.3,4460.2,0.1907]
[1756948094000,1.19198199,4460.3,4460.2,0.1907]
[1756948094204,5.41618199,4460.3,4460.2,0.1907]
[1756948094601,0.43880052,4460.3,4460.2,0.1907]
[1756948094806,0.44560052,4460.3,4460.2,0.1907]
[1756948095104,0.231,4460.3,4460.2,0.1907]
[1756948095614,0.231,4460.5,4460.2,0.1907]
[1756948097306,1.19850395,4461.1,4460.2,0.1907]
[1756948097508,0.231,4460.9,4460.2,0.1907]
[1756948099617,0.112,4461.0,4460.4,0.97738147]
[1756948101823,0.53373639,4460.9,4460.4,0.97738147]
[1756948102123,0.53373639,4460.8,4460.4,0.97738147]
[1756948102316,0.112,4461.0,4460.4,0.97738147]
[1756948107629,0.97738147,4461.7,4460.4,0.97738147]
[1756948107924,0.53354078,4461.6,4460.4,0.97738147]
[1756948108123,0.53354078,4461.5,4460.4,0.97738147]
[1756948108323,0.53354078,4461.4,4460.4,0.97738147]
[1756948108524,0.53354078,4461.3,4460.4,0.97738147]
[1756948108725,0.53354078,4461.2,4460.4,0.97738147]
[1756948108920,0.64554078,4461.1,4460.4,0.97738147]
[1756948109119,0.112,4461.1,4460.4,0.97738147]
[1756948109524,0.112,4461.1,4460.8,0.97738147]
[1756948110028,0.97738147,4462.3,4460.7,0.97738147]
[1756948110327,0.97738147,4461.8,4460.7,0.97738147]
[1756948110528,0.53358955,4461.7,4460.7,0.97738147]
[1756948110721,0.53358955,4461.6,4460.7,0.97738147]
[1756948110922,0.53358955,4461.5,4460.7,0.97738147]
[1756948111129,0.97738147,4461.8,4460.7,0.97738147]
[1756948111328,0.64562116,4461.7,4460.7,0.97738147]
[1756948111525,0.53362116,4461.6,4460.7,0.97738147]
[1756948111731,0.112,4461.7,4461.5,0.97738147]
[1756948111923,0.53356644,4461.6,4461.5,0.97738147]
[1756948112324,0.112,4461.7,4461.5,0.97738147]
[1756948112622,0.142,4462.4,4461.0,0.97738147]
[1756948112824,0.53345226,4462.3,4461.4,0.97738147]
[1756948113019,0.53345226,4462.2,4461.8,0.97738147]
[1756948113225,0.97738147,4463.0,4461.8,0.97738147]
[1756948113531,1.73204106,4462.9,4461.8,0.97738147]
[1756948113724,0.53353711,4462.8,4461.8,0.97738147]
[1756948113925,0.53353711,4462.7,4462.2,0.97738147]
[1756948114227,0.112,4462.9,4460.6,0.142]
[1756948114228,0.53353711,4462.6,4461.8,0.97738147]
[1756948114438,0.53353711,4462.5,4461.8,0.97738147]
[1756948114628,0.53353711,4462.4,4461.8,0.97738147]
[1756948114825,0.53353711,4462.3,4461.8,0.97738147]
[1756948115021,0.53353711,4462.2,4461.8,0.97738147]
[1756948115330,0.112,4462.9,4461.8,0.97738147]
[1756948115530,0.53284444,4462.8,4461.8,0.97738147]
[1756948115732,0.53284444,4462.7,4461.8,0.97738147]
[1756948115933,0.53284444,4462.6,4461.8,0.97738147]
[1756948116128,0.53284444,4462.5,4461.8,0.97738147]
[1756948116323,0.53284444,4462.4,4461.8,0.97738147]
[1756948116523,0.53284444,4462.3,4461.8,0.97738147]
[1756948116725,0.112,4462.9,4461.8,0.97738147]
[1756948117033,0.53266709,4462.8,4461.8,0.97738147]
[1756948117225,0.53266709,4462.7,4461.8,0.97738147]
[1756948117426,0.53266709,4462.6,4461.8,0.97738147]
[1756948117621,0.53266709,4462.5,4461.8,0.97738147]
[1756948117828,0.112,4462.9,4461.8,0.97738147]
[1756948117829,0.53266709,4462.4,4461.8,0.97738147]
[1756948118029,0.53266709,4462.3,4461.8,0.97738147]
[1756948118230,0.112,4462.9,4461.8,0.97738147]
[1756948118424,0.53243394,4462.8,4461.8,0.97738147]
[1756948118634,0.53243394,4462.7,4461.8,0.97738147]
[1756948118830,0.53243394,4462.6,4461.8,0.97738147]
[1756948119032,0.53243394,4462.5,4461.8,0.97738147]
[1756948119335,0.53243394,4462.4,4461.8,0.97738147]
[1756948119534,0.112,4462.9,4462.2,0.97738147]
[1756948119831,0.112,4462.9,4460.8,0.22412]
[1756948120028,0.112,4462.9,4460.9,0.63434]
[1756948120230,0.53229301,4462.8,4461.9,0.97738147]
[1756948120537,0.53229301,4462.7,4461.9,0.97738147]
[1756948120737,0.112,4462.9,4461.9,0.97738147]
[1756948121031,0.53236244,4462.8,4461.9,0.97738147]